fUSD/lending_fUSD_20250416
["ID","MTS","AMOUNT","RATE_DAILY","PERIOD"]
[358163234,1744806697573,-10000.0,0.000534,120]
[358163235,1744806697583,-500.0,0.00053424,30]
[358163236,1744806697593,-5000.0,0.0005344,32]
[358163237,1744806697602,-10000.0,0.000536,120]
[358163238,1744806697612,-1200.0,0.00053616,60]
[358163239,1744806697622,-500.0,0.00053618,60]
[358163240,1744806697631,-1000.0,0.00053622,120]
[358163241,1744806697641,-151.0,0.00053644,120]
[358163242,1744806697651,-1000.0,0.00053658,60]
[358163243,1744806697661,-150.0,0.00053672,120]
[358163244,1744806697670,-209.0,0.0005369,30]
[358163245,1744806697680,-214.0,0.0005369,30]
[358163246,1744806697689,-209.0,0.0005369,30]
[358163247,1744806697698,-500.0,0.00053773,60]
[358163248,1744806697707,-10000.0,0.000538,120]
[358163249,1744806697717,-218.12,0.000538,120]
[358163250,1744806697727,-1000.0,0.00053865,60]
[358163251,1744806697736,-500.0,0.00053889,60]
[358163252,1744806697746,-5252.80034179,0.000539,120]
[358163253,1744806697757,-2851.0,0.000539,120]
[358163254,1744806697766,-500.0,0.00053972,32]
[358163255,1744806697776,-50000.0,0.00054,54]
[358163256,1744806697786,-250.0,0.00054,5]
[358163257,1744806697795,-878.97228458,0.00054,2]
[358163258,1744806697805,-1000.0,0.00054,120]
[358163259,1744806697815,-2005.15,0.00054,120]
[358163260,1744806697824,-491.3479148,0.00054,120]
[358163261,1744806697834,-400.0,0.00054,120]
[358163262,1744806697844,-1000.0,0.00054,120]
[358163263,1744806697854,-6181.70428414,0.00054,120]
[358163264,1744806697864,-2000.0,0.00054,120]
[358163265,1744806697874,-49874.62767634,0.00054,120]
[358163266,1744806697884,-500.0,0.00054,120]
[358163267,1744806697894,-12000.0,0.00054,120]
[358163268,1744806697904,-11699.0,0.00054,120]
[358163269,1744806697914,-1000000.0,0.00054,120]
[358163270,1744806697924,-1000000.0,0.00054,120]
[358163271,1744806697934,-1000000.0,0.00054,120]
[358163272,1744806697943,-1000000.0,0.00054,120]
[358163273,1744806697953,-1000000.0,0.00054,120]
[358163274,1744806697962,-273.475082,0.00054,120]
[358163275,1744806697972,-1163.72147341,0.00054,120]
[358163276,1744806697981,-585.35,0.00054076,2]
[358163277,1744806697991,-1000.0,0.00054157,60]
[358163278,1744806698001,-1000.0,0.00054167,60]
[358163279,1744806698011,-2262.59173995,0.00054295,30]
[358163280,1744806698020,-500.0,0.00054318,60]
[358163281,1744806698030,-500.0,0.00054336,60]
[358163282,1744806698039,-810.88,0.0005442,120]
[358163283,1744806698049,-530.81,0.0005442,120]
[358163284,1744806698058,-5000.0,0.0005444,32]
[358163285,1744806698072,-2899.79451412,0.00054498,71]
[358163286,1744806698082,-1000000.0,0.000545,120]
[358163287,1744806698091,-264.3,0.000545,54]
[358163288,1744806698100,-500.0,0.0005452,34]
[358163289,1744806698110,-500.0,0.00054544,60]
[358163290,1744806698120,-23397.16,0.000547,9]
[358163291,1744806698129,-208304.73,0.000547,9]
[358163292,1744806698139,-481.13,0.000547,9]
[358163293,1744806698148,-1267.65,0.000547,9]
[358163294,1744806698158,-35633.91,0.000547,9]
[358163295,1744806698167,-11709.53,0.000547,9]
[358163296,1744806698176,-4698.08,0.000547,9]
[358163297,1744806698185,-4000.71829759,0.00054748,31]
[358163298,1744806698194,-1489.8721594,0.0005478,120]
[358163299,1744806698204,-172.50720239,0.00054794,7]
[358163300,1744806698214,-166.31032586,0.00054794,7]
[358163301,1744806698224,-221.15841109,0.00054794,7]
[358163302,1744806698234,-250.0,0.00054794,120]
[358163303,1744806698244,-500.0,0.00054794,120]
[358163304,1744806698254,-7170.51,0.00054794,90]
[358163305,1744806698264,-2418.72,0.00054794,120]
[358163306,1744806698273,-500.0,0.00054794,2]
[358163307,1744806698283,-533.58,0.00054794,120]
[358163308,1744806698292,-506.12239851,0.00054794,120]
[358163309,1744806698302,-500.0,0.00054794,16]
[358163310,1744806698312,-151.0,0.00054794,120]
[358163311,1744806698321,-1363.15,0.00054794,120]
[358163312,1744806698330,-500.0,0.00054794,120]
[358163313,1744806698341,-589.94032128,0.00054794,120]
[358163314,1744806698351,-500.0,0.00054794,120]
[358163315,1744806698362,-500.0,0.00054794,120]
[358163316,1744806698371,-500.0,0.00054794,120]
[358163317,1744806698380,-500.0,0.00054794,120]
[358163318,1744806698391,-500.0,0.00054794,120]
[358163319,1744806698403,-500.47303215,0.00054794,120]
[358163320,1744806698413,-500.0,0.00054794,2]
[358163321,1744806698422,-500.0,0.00054794,120]
[358163322,1744806698431,-500.0,0.00054794,120]
[358163323,1744806698442,-532.59707397,0.00054794,120]
[358163324,1744806698451,-500.0,0.00054794,120]
[358163325,1744806698461,-500.0,0.00054794,120]
[358163326,1744806698473,-500.0,0.00054794,5]
[358163327,1744806698482,-500.0,0.00054794,120]
[358163328,1744806698492,-500.0,0.00054794,120]
[358163329,1744806698501,-522.24667296,0.00054794,120]
[358163330,1744806698511,-500.0,0.00054794,120]
[358163331,1744806698520,-500.0,0.00054794,120]
[358163332,1744806698529,-500.0,0.00054794,120]
[358163333,1744806698539,-500.0,0.00054794,120]
[358163334,1744806698549,-500.0,0.00054794,120]
[358163335,1744806698558,-500.0,0.00054794,120]
[358163336,1744806698568,-500.0,0.00054794,120]
[358163337,1744806698577,-209.36260209,0.00054794,120]
[358163338,1744806698587,-500.0,0.00054794,120]
[358163339,1744806698596,-505.582462,0.00054794,120]
[358163340,1744806698606,-502.07710304,0.00054794,120]
[358163341,1744806698615,-500.0,0.00054794,120]
[358163342,1744806698624,-500.0,0.00054794,120]
[358163343,1744806698633,-500.0,0.00054794,120]
[358163344,1744806698643,-1715.76,0.00054794,120]
[358163345,1744806698652,-500.0,0.00054794,8]
[358163346,1744806698662,-505.00546382,0.00054794,120]
[358163347,1744806698671,-500.0,0.00054794,120]
[358163348,1744806698680,-500.0,0.00054794,120]
[358163349,1744806698689,-500.0,0.00054794,120]
[358163350,1744806698827,-500.0,0.00054794,120]
[358163351,1744806698837,-504.33415429,0.00054794,120]
[358163352,1744806698847,-500.0,0.00054794,120]
[358163353,1744806698857,-500.0,0.00054794,120]
[358163354,1744806698866,-505.17009982,0.00054794,120]
[358163355,1744806698876,-266.8147376,0.00054794,120]
[358163356,1744806698885,-500.0,0.00054794,2]
[358163357,1744806698895,-500.0,0.00054794,120]
[358163358,1744806698905,-524.06234484,0.00054794,120]
[358163359,1744806698915,-500.0,0.00054794,120]
[358163360,1744806698926,-500.61708866,0.00054794,120]
[358163361,1744806698936,-500.0,0.00054794,120]
[358163362,1744806698947,-500.0,0.00054794,120]
[358163363,1744806698958,-500.0,0.00054794,120]
[358163364,1744806698969,-500.0,0.00054794,120]
[358163365,1744806698980,-500.0,0.00054794,120]
[358163366,1744806698991,-500.0,0.00054794,120]
[358163367,1744806699004,-530.79506791,0.00054794,120]
[358163368,1744806699015,-500.0,0.00054794,120]
[358163369,1744806699024,-500.0,0.00054794,120]
[358163370,1744806699034,-500.0,0.00054794,120]
[358163371,1744806699043,-499.7207991,0.00054794,120]
[358163372,1744806699054,-500.0,0.00054794,120]
[358163373,1744806699063,-572.45,0.00054794,120]
[358163374,1744806699073,-500.0,0.00054794,120]
[358163375,1744806699082,-500.0,0.00054794,120]
[358163376,1744806699092,-508.86374282,0.00054794,120]
[358163377,1744806699102,-500.0,0.00054794,120]
[358163378,1744806699111,-500.0,0.00054794,120]
[358163379,1744806699121,-500.0,0.00054794,120]
[358163380,1744806699130,-500.0,0.00054794,120]
[358163381,1744806699140,-500.0,0.00054794,120]
[358163382,1744806699150,-568.09693929,0.00054794,120]
[358163383,1744806699159,-500.0,0.00054794,120]
[358163384,1744806699169,-500.0,0.00054794,120]
[358163385,1744806699178,-500.0,0.00054794,120]
[358163386,1744806699188,-500.0,0.00054794,120]
[358163387,1744806699198,-500.0,0.00054794,120]
[358163388,1744806699208,-500.0,0.00054794,120]
[358163389,1744806699218,-517.38817131,0.00054794,120]
[358163390,1744806699228,-530.23218835,0.00054794,120]
[358163391,1744806699237,-500.0,0.00054794,120]
[358163392,1744806699247,-324.66613613,0.00054794,120]
[358163393,1744806699259,-500.0,0.00054794,120]
[358163394,1744806699268,-500.54067341,0.00054794,120]
[358163395,1744806699278,-500.78623288,0.00054794,120]
[358163396,1744806699287,-500.0,0.00054794,120]
[358163397,1744806699297,-500.0,0.00054794,120]
[358163398,1744806699307,-500.0,0.00054794,120]
[358163399,1744806699316,-853.05,0.00054794,120]
[358163400,1744806699326,-500.0,0.00054794,120]
[358163401,1744806699335,-500.0,0.00054794,120]
[358163402,1744806699345,-501.14989841,0.00054794,120]
[358163403,1744806699357,-500.0,0.00054794,120]
[358163404,1744806699367,-500.0,0.00054794,120]
[358163405,1744806699376,-500.0,0.00054794,120]
[358163406,1744806699386,-500.0,0.00054794,120]
[358163407,1744806699397,-508.76819531,0.00054794,120]
[358163408,1744806699407,-500.0,0.00054794,120]
[358163409,1744806699416,-500.81773592,0.00054794,120]
[358163410,1744806699426,-500.0,0.00054794,120]
[358163411,1744806699435,-613.7276327,0.00054794,120]
[358163412,1744806699445,-500.0,0.00054794,120]
[358163413,1744806699454,-500.0,0.00054794,120]
[358163414,1744806699463,-505.51795096,0.00054794,120]
[358163415,1744806699474,-219.97947739,0.00054794,120]
[358163416,1744806699484,-500.0,0.00054794,120]
[358163417,1744806699493,-500.0,0.00054794,120]
[358163418,1744806699504,-500.0,0.00054794,120]
[358163419,1744806699514,-500.0,0.00054794,120]
[358163420,1744806699523,-515.04400016,0.00054794,20]
[358163421,1744806699533,-500.0,0.00054794,120]
[358163422,1744806699543,-500.0,0.00054794,120]
[358163423,1744806699552,-500.0,0.00054794,120]
[358163424,1744806699562,-500.0,0.00054794,120]
[358163425,1744806699571,-500.0,0.00054794,120]
[358163426,1744806699581,-500.0,0.00054794,120]
[358163427,1744806699591,-500.0,0.00054794,120]
[358163428,1744806699601,-500.0,0.00054794,120]
[358163429,1744806699610,-500.0,0.00054794,120]
[358163430,1744806699619,-500.0,0.00054794,120]
[358163431,1744806699629,-500.0,0.00054794,120]
[358163432,1744806699638,-500.0,0.00054794,30]
[358163433,1744806699647,-500.0,0.00054794,120]
[358163434,1744806699657,-500.0,0.00054794,120]
[358163435,1744806699667,-500.0,0.00054794,120]
[358163436,1744806699676,-500.0,0.00054794,120]
[358163437,1744806699686,-500.0,0.00054794,120]
[358163438,1744806699696,-500.0,0.00054794,120]
[358163439,1744806699707,-500.0,0.00054794,120]
[358163440,1744806699718,-500.0,0.00054794,120]
[358163441,1744806699728,-500.0,0.00054794,120]
[358163442,1744806699747,-500.0,0.00054794,120]
[358163443,1744806699766,-500.0,0.00054794,120]
[358163444,1744806699787,-500.0,0.00054794,120]
[358163445,1744806699809,-511.72094145,0.00054794,120]
[358163446,1744806699826,-500.0,0.00054794,120]
[358163447,1744806699844,-500.0,0.00054794,120]
[358163448,1744806699864,-500.0,0.00054794,120]
[358163449,1744806699884,-519.96030969,0.00054794,120]
[358163450,1744806699903,-500.0,0.00054794,120]
[358163451,1744806699922,-500.0,0.00054794,120]
[358163452,1744806699942,-776.86,0.00054794,120]
[358163453,1744806699959,-500.0,0.00054794,120]
[358163454,1744806699973,-500.0,0.00054794,120]
[358163455,1744806699992,-500.0,0.00054794,120]
[358163456,1744806700005,-500.0,0.00054794,120]
[358163457,1744806700023,-500.0,0.00054794,120]
[358163458,1744806700038,-500.0,0.00054794,120]
[358163459,1744806700053,-500.0,0.00054794,7]
[358163460,1744806700068,-500.0,0.00054794,120]
[358163461,1744806700084,-500.0,0.00054794,120]
[358163462,1744806700099,-508.6597593,0.00054794,120]
[358163463,1744806700115,-500.0,0.00054794,120]
[358163464,1744806700130,-500.0,0.00054794,120]
[358163465,1744806700146,-500.0,0.00054794,120]
[358163466,1744806700161,-500.0,0.00054794,120]
[358163467,1744806700175,-500.0,0.00054794,120]
[358163468,1744806700190,-500.0,0.00054794,120]
[358163469,1744806700205,-500.0,0.00054794,120]
[358163470,1744806700221,-500.0,0.00054794,120]
[358163471,1744806700235,-511.104131,0.00054794,120]
[358163472,1744806700251,-508.7257611,0.00054794,120]
[358163473,1744806700266,-500.0,0.00054794,120]
[358163474,1744806700282,-500.0,0.00054794,120]
[358163475,1744806700297,-500.89126849,0.00054794,120]
[358163476,1744806700313,-500.0,0.00054794,120]
[358163477,1744806700328,-500.0,0.00054794,120]
[358163478,1744806700344,-500.0,0.00054794,120]
[358163479,1744806700359,-511.37860946,0.00054794,120]
[358163480,1744806700375,-500.0,0.00054794,120]
[358163481,1744806700391,-500.0,0.00054794,120]
[358163482,1744806700413,-500.0,0.00054794,120]
[358163483,1744806700429,-500.0,0.00054794,7]
[358163484,1744806700444,-500.0,0.00054794,120]
[358163485,1744806700460,-500.0,0.00054794,120]
[358163486,1744806700477,-500.0,0.00054794,120]
[358163487,1744806700494,-500.0,0.00054794,120]
[358163488,1744806700510,-500.0,0.00054794,120]
[358163489,1744806700525,-500.0,0.00054794,120]
[358163490,1744806700539,-500.0,0.00054794,120]
[358163491,1744806700554,-500.0,0.00054794,120]
[358163492,1744806700570,-516.17665923,0.00054794,120]
[358163493,1744806700584,-500.0,0.00054794,120]
[358163494,1744806700600,-500.0,0.00054794,120]
[358163495,1744806700615,-504.03853488,0.00054794,120]
[358163496,1744806700630,-500.0,0.00054794,120]
[358163497,1744806700646,-500.0,0.00054794,120]
[358163498,1744806700661,-500.0,0.00054794,120]
[358163499,1744806700676,-500.0,0.00054794,120]
[358163500,1744806700692,-513.43178444,0.00054794,120]
[358163501,1744806700706,-500.0,0.00054794,120]
[358163502,1744806700721,-500.0,0.00054794,120]
[358163503,1744806700737,-500.0,0.00054794,120]
[358163504,1744806700755,-590.70181057,0.00054794,120]
[358163505,1744806700769,-500.0,0.00054794,120]
[358163506,1744806700785,-500.0,0.00054794,120]
[358163507,1744806700800,-517.64737858,0.00054794,120]
[358163508,1744806700816,-500.0,0.00054794,120]
[358163509,1744806700831,-500.0,0.00054794,120]
[358163510,1744806700846,-500.0,0.00054794,120]
[358163511,1744806700861,-500.0,0.00054794,120]
[358163512,1744806700876,-500.0,0.00054794,120]
[358163513,1744806700891,-500.0,0.00054794,120]
[358163514,1744806700906,-500.0,0.00054794,120]
[358163515,1744806700921,-500.0,0.00054794,120]
[358163516,1744806700936,-500.0,0.00054794,120]
[358163517,1744806700951,-500.0,0.00054794,120]
[358163518,1744806700965,-720.40020683,0.00054794,120]
[358163519,1744806700980,-500.0,0.00054794,120]
[358163520,1744806700996,-500.0,0.00054794,120]
[358163521,1744806701013,-500.0,0.00054794,120]
[358163522,1744806701025,-500.0,0.00054794,120]
[358163523,1744806701034,-500.0,0.00054794,120]
[358163524,1744806701044,-500.0,0.00054794,120]
[358163525,1744806701053,-500.0,0.00054794,120]
[358163526,1744806701063,-500.0,0.00054794,120]
[358163527,1744806701072,-500.0,0.00054794,120]
[358163528,1744806701082,-500.0,0.00054794,120]
[358163529,1744806701091,-500.0,0.00054794,120]
[358163530,1744806701101,-500.0,0.00054794,120]
[358163531,1744806701110,-500.0,0.00054794,120]
[358163532,1744806701121,-504.85080516,0.00054794,120]
[358163533,1744806701130,-500.0,0.00054794,120]
[358163534,1744806701384,-500.0,0.00054794,120]
[358163535,1744806701406,-500.0,0.00054794,120]
[358163536,1744806701427,-500.0,0.00054794,120]
[358163537,1744806701439,-500.0,0.00054794,7]
[358163538,1744806701448,-500.0,0.00054794,120]
[358163539,1744806701457,-500.0,0.00054794,120]
[358163540,1744806701468,-500.0,0.00054794,120]
[358163541,1744806701479,-500.0,0.00054794,120]
[358163542,1744806701489,-500.0,0.00054794,120]
[358163543,1744806701498,-500.0,0.00054794,120]
[358163544,1744806701507,-500.0,0.00054794,120]
[358163545,1744806701516,-500.0,0.00054794,120]
[358163546,1744806701526,-500.0,0.00054794,120]
[358163547,1744806701535,-500.0,0.00054794,120]
[358163548,1744806701546,-500.0,0.00054794,120]
[358163549,1744806701555,-500.0,0.00054794,120]
[358163550,1744806701564,-500.0,0.00054794,120]
[358163551,1744806701574,-500.0,0.00054794,120]
[358163552,1744806701583,-500.0,0.00054794,120]
[358163553,1744806701592,-500.0,0.00054794,120]
[358163554,1744806701602,-500.0,0.00054794,120]
[358163555,1744806701612,-500.0,0.00054794,120]
[358163556,1744806701621,-500.0,0.00054794,120]
[358163557,1744806701631,-500.0,0.00054794,120]
[358163558,1744806701640,-500.0,0.00054794,120]
[358163559,1744806701650,-506.92452523,0.00054794,120]
[358163560,1744806701659,-500.0,0.00054794,120]
[358163561,1744806701669,-500.0,0.00054794,120]
[358163562,1744806701678,-500.0,0.00054794,120]
[358163563,1744806701688,-526.54811862,0.00054794,120]
[358163564,1744806701698,-500.0,0.00054794,120]
[358163565,1744806701708,-500.0,0.00054794,120]
[358163566,1744806701718,-500.0,0.00054794,120]
[358163567,1744806701727,-500.0,0.00054794,14]
[358163568,1744806701737,-500.0,0.00054794,120]
[358163569,1744806701746,-500.0,0.00054794,120]
[358163570,1744806701758,-500.0,0.00054794,120]
[358163571,1744806701768,-500.0,0.00054794,120]
[358163572,1744806701778,-1000.0,0.00054794,120]
[358163573,1744806701788,-532.8805024,0.00054794,120]
[358163574,1744806701797,-500.0,0.00054794,120]
[358163575,1744806701807,-500.0,0.00054794,120]
[358163576,1744806701817,-546.98388168,0.00054794,120]
[358163577,1744806701826,-507.50159732,0.00054794,120]
[358163578,1744806701834,-500.0,0.00054794,120]
[358163579,1744806701843,-500.0,0.00054794,120]
[358163580,1744806701852,-500.0,0.00054794,120]
[358163581,1744806701861,-500.0,0.00054794,120]
[358163582,1744806701870,-500.0,0.00054794,120]
[358163583,1744806701878,-500.0,0.00054794,120]
[358163584,1744806701888,-500.0,0.00054794,120]
[358163585,1744806701896,-500.0,0.00054794,120]
[358163586,1744806701905,-509.0133254,0.00054794,120]
[358163587,1744806701913,-538.86228414,0.00054794,61]
[358163588,1744806701920,-500.0,0.00054794,120]
[358163589,1744806701928,-500.0,0.00054794,120]
[358163590,1744806701935,-500.0,0.00054794,120]
[358163591,1744806701943,-546.30689718,0.00054794,120]
[358163592,1744806701951,-500.0,0.00054794,120]
[358163593,1744806701959,-500.0,0.00054794,120]
[358163594,1744806701968,-500.0,0.00054794,120]
[358163595,1744806701975,-500.0,0.00054794,120]
[358163596,1744806701982,-500.0,0.00054794,120]
[358163597,1744806701992,-500.0,0.00054794,120]
[358163598,1744806702001,-500.0,0.00054794,120]
[358163599,1744806702013,-500.0,0.00054794,120]
[358163600,1744806702023,-510.45,0.00054794,120]
[358163601,1744806702033,-505.97467555,0.00054794,120]
[358163602,1744806702047,-500.0,0.00054794,120]
[358163603,1744806702057,-500.0,0.00054794,120]
[358163604,1744806702066,-500.0,0.00054794,120]
[358163605,1744806702076,-572.10555343,0.00054794,120]
[358163606,1744806702085,-500.0,0.00054794,120]
[358163607,1744806702095,-500.0,0.00054794,120]
[358163608,1744806702105,-505.20479054,0.00054794,120]
[358163609,1744806702115,-500.0,0.00054794,120]
[358163610,1744806702124,-500.0,0.00054794,120]
[358163611,1744806702134,-504.38582696,0.00054794,120]
[358163612,1744806702144,-500.0,0.00054794,120]
[358163613,1744806702153,-500.0,0.00054794,120]
[358163614,1744806702164,-500.0,0.00054794,7]
[358163615,1744806702174,-500.0,0.00054794,120]
[358163616,1744806702184,-500.0,0.00054794,120]
[358163617,1744806702195,-500.0,0.00054794,120]
[358163618,1744806702204,-500.0,0.00054794,120]
[358163619,1744806702214,-500.0,0.00054794,120]
[358163620,1744806702224,-500.0,0.00054794,120]
[358163621,1744806702233,-538.37901032,0.00054794,120]
[358163622,1744806702243,-500.0,0.00054794,120]
[358163623,1744806702254,-500.0,0.00054794,120]
[358163624,1744806702264,-500.0,0.00054794,120]
[358163625,1744806702273,-500.0,0.00054794,120]
[358163626,1744806702284,-500.0,0.00054794,120]
[358163627,1744806702293,-500.0,0.00054794,120]
[358163628,1744806702304,-500.0,0.00054794,120]
[358163629,1744806702314,-500.0,0.00054794,120]
[358163630,1744806702324,-500.0,0.00054794,120]
[358163631,1744806702334,-500.0,0.00054794,120]
[358163632,1744806702344,-500.0,0.00054794,120]
[358163633,1744806702354,-300.0,0.00054794,120]
[358163634,1744806702363,-500.0,0.00054794,120]
[358163635,1744806702373,-500.0,0.00054794,120]
[358163636,1744806702386,-500.0,0.00054794,120]
[358163637,1744806702398,-500.0,0.00054794,120]
[358163638,1744806702408,-500.0,0.00054794,120]
[358163639,1744806702418,-500.0,0.00054794,120]
[358163640,1744806702427,-536.9825947,0.00054794,120]
[358163641,1744806702438,-500.0,0.00054794,120]
[358163642,1744806702448,-500.0,0.00054794,120]
[358163643,1744806702458,-500.0,0.00054794,120]
[358163644,1744806702467,-328.9000473,0.00054794,120]
[358163645,1744806702478,-500.0,0.00054794,120]
[358163646,1744806702489,-493.68,0.00054794,120]
[358163647,1744806702499,-500.0,0.00054794,120]
[358163648,1744806702511,-500.0,0.00054794,120]
[358163649,1744806702521,-500.0,0.00054794,120]
[358163650,1744806702531,-500.0,0.00054794,120]
[358163651,1744806702540,-520.85462106,0.00054794,120]
[358163652,1744806702549,-500.0,0.00054794,120]
[358163653,1744806702559,-526.02088494,0.00054794,120]
[358163654,1744806702570,-616.26495163,0.00054794,120]
[358163655,1744806702579,-500.0,0.00054794,120]
[358163656,1744806702589,-500.0,0.00054794,120]
[358163657,1744806702599,-542.52751431,0.00054794,120]
[358163658,1744806702609,-242.05737747,0.00054794,120]
[358163659,1744806702619,-500.0,0.00054794,120]
[358163660,1744806702629,-500.0,0.00054794,120]
[358163661,1744806702638,-500.0,0.00054794,120]
[358163662,1744806702648,-507.66326686,0.00054794,120]
[358163663,1744806702658,-500.0,0.00054794,120]
[358163664,1744806702667,-500.0,0.00054794,120]
[358163665,1744806702677,-500.0,0.00054794,120]
[358163666,1744806702687,-408.95997517,0.00054794,120]
[358163667,1744806702697,-500.0,0.00054794,120]
[358163668,1744806702707,-539.75354041,0.00054794,120]
[358163669,1744806702717,-500.0,0.00054794,120]
[358163670,1744806702726,-1321.96,0.00054794,120]
[358163671,1744806702736,-278.18795622,0.00054794,120]
[358163672,1744806702746,-500.0,0.00054794,120]
[358163673,1744806702758,-515.78032283,0.00054794,120]
[358163674,1744806702768,-500.0,0.00054794,120]
[358163675,1744806702778,-500.0,0.00054794,120]
[358163676,1744806702788,-500.0,0.00054794,120]
[358163677,1744806702798,-525.03553995,0.00054794,120]
[358163678,1744806702808,-500.0,0.00054794,120]
[358163679,1744806702818,-500.0,0.00054794,120]
[358163680,1744806702828,-502.84206069,0.00054794,120]
[358163681,1744806702839,-500.0,0.00054794,120]
[358163682,1744806702848,-500.0,0.00054794,120]
[358163683,1744806702859,-520.76989883,0.00054794,120]
[358163684,1744806702869,-500.0,0.00054794,120]
[358163685,1744806702880,-500.0,0.00054794,120]
[358163686,1744806702890,-500.0,0.00054794,120]
[358163687,1744806702901,-500.0,0.00054794,120]
[358163688,1744806702911,-500.0,0.00054794,120]
[358163689,1744806702921,-500.0,0.00054794,120]
[358163690,1744806702931,-500.0,0.00054794,120]
[358163691,1744806702941,-500.0,0.00054794,120]
[358163692,1744806702951,-500.0,0.00054794,120]
[358163693,1744806702962,-2491.89,0.00054794,120]
[358163694,1744806702972,-500.0,0.00054794,120]
[358163695,1744806702983,-557.15403337,0.00054794,120]
[358163696,1744806702992,-500.0,0.00054794,120]
[358163697,1744806703002,-500.0,0.00054794,120]
[358163698,1744806703018,-500.0,0.00054794,120]
[358163699,1744806703028,-500.0,0.00054794,120]
[358163700,1744806703037,-500.0,0.00054794,120]
[358163701,1744806703047,-500.0,0.00054794,120]
[358163702,1744806703056,-504.54066053,0.00054794,120]
[358163703,1744806703066,-500.0,0.00054794,120]
[358163704,1744806703088,-435.53775574,0.00054794,120]
[358163705,1744806703098,-500.0,0.00054794,120]
[358163706,1744806703108,-500.0,0.00054794,120]
[358163707,1744806703118,-500.0,0.00054794,120]
[358163708,1744806703128,-509.13032202,0.00054794,120]
[358163709,1744806703138,-500.0,0.00054794,120]
[358163710,1744806703148,-500.0,0.00054794,120]
[358163711,1744806703158,-500.0,0.00054794,120]
[358163712,1744806703168,-517.83800674,0.00054794,120]
[358163713,1744806703177,-500.0,0.00054794,120]
[358163714,1744806703187,-500.0,0.00054794,120]
[358163715,1744806703198,-500.0,0.00054794,120]
[358163716,1744806703208,-522.95706315,0.00054794,120]
[358163717,1744806703218,-500.0,0.00054794,120]
[358163718,1744806703228,-508.81383868,0.00054794,120]
[358163719,1744806703238,-500.0,0.00054794,120]
[358163720,1744806703248,-500.0,0.00054794,120]
[358163721,1744806703260,-512.37274431,0.00054794,120]
[358163722,1744806703270,-500.0,0.00054794,120]
[358163723,1744806703279,-508.67921476,0.00054794,120]
[358163724,1744806703289,-665.01,0.00054794,120]
[358163725,1744806703299,-500.0,0.00054794,120]
[358163726,1744806703308,-500.0,0.00054794,120]
[358163727,1744806703317,-27961.93,0.00054794,7]
[358163728,1744806703328,-500.0,0.00054794,120]
[358163729,1744806703337,-500.0,0.00054794,120]
[358163730,1744806703346,-500.0,0.00054794,120]
[358163731,1744806703356,-500.0,0.00054794,120]
[358163732,1744806703365,-505.55345445,0.00054794,120]
[358163733,1744806703375,-500.0,0.00054794,120]